[Event "34th MPL National U14-ch 2022"]
[Site "Ahmedabad"]
[Date "2022.05.13"]
[Round "9.1"]
[White "Mayank Chakraborty"]
[Black "John Veny Akkarakaran"]
[Result "0-1"]
[ECO "C11"]
[WhiteElo "2015"]
[BlackElo "1855"]
[Annotator "TA"]
[PlyCount "120"]
[EventDate "2022.05.09"]
[EventType "swiss"]
[EventCountry "IND"]
[SourceTitle "playchess.com"]
[Source "ChessBase"]
[SourceQuality "1"]
[TimeControl "5400+30"]

{[%evp 23,120,11,44,43,47,45,75,75,74,67,77,64,102,23,28,37,31,0,6,0,13,0,0,0,0,0,0,0,0,0,29,0,0,0,0,0,0,0,0,0,0,0,0,0,0,0,147,145,152,154,156,154,148,139,182,164,170,156,165,145,210,75,205,186,264,171,1789,1348,1389,596,29990,29991,29991,621,560,-419,-455,-446,-404,-5181,-1474,-2534,-2270,-3254,-2598,-29986,-29987,-29987,-29988,-29988,-29989,-29989,-29990,-29990,-29991,-29991,-29992,-29992,-29993]} 1. e4 {[%emt 0:00:03]} e6 {[%emt 0:00:07]} 2. d4 {[%emt 0:00:04]} d5 {[%emt 0:00:05]} 3. Nc3 {[%emt 0:00:05]} Nf6 {[%emt 0:00:24]} 4. e5 {[%emt 0:00:05]} Nfd7 {[%emt 0:00:10]} 5. f4 c5 {[%emt 0:00:07]} 6. Nf3 {[%emt 0:00:11]} Nc6 {[%emt 0:00:14]} 7. Be3 cxd4 {[%emt 0:06:23]} 8. Nxd4 {[%emt 0:00:12]} Bc5 {[%emt 0:00:11]} 9. Qd2 {[%emt 0:00:24]} O-O 10. O-O-O {[%emt 0:00:18]} Bxd4 {[%emt 0:01:16]} 11. Bxd4 {[%emt 0:00:07]} a6 {11...a6 is better than 11...Qa5.} 12. Kb1 {[%emt 0:02:27]} b5 {[%emt 0:02:35]} 13. Bf2 {[%emt 0:01:45] C11: French: Classical System: 4 e5 and 4 Bg5 dxe4.} Qa5 {[%emt 0:11:04]} 14. Bd3 {[%emt 0:14:40]} b4 {[%emt 0:08:54]} 15. Ne2 {[%emt 0:02:59] White is better.} Nc5 {[%emt 0:16:34]} 16. Nd4 {[%emt 0:02:32]} Nxd4 {[%emt 0:06:16]} 17. Bxd4 {[%emt 0:00:07] [#]} Bb7 $146 {[%emt 0:17:26]} ({Predecessor:} 17... Nxd3 18. Qxd3 Bd7 19. Qg3 Qc7 20. Rd3 Ba4 21. Rc1 Rac8 22. Qf2 Rfe8 23. g4 Qe7 {1-0 (37) King,D (2500)-McHugh,K Dublin 1993}) 18. f5 {[%emt 0:09:47]} (18. g4 $16) 18... exf5 $1 $11 {[%emt 0:01:37]} 19. Bxf5 {[%emt 0:00:18] This bishop pair is nice.} Bc8 {[%emt 0:05:15]} 20. g4 {[%emt 0:08:01][%cal Oa2a3]} (20. a3 $5 {[%cal Ra3b4]} Rb8 21. e6 Bxe6 22. Bxg7 (22. Qg5 f6 $17) 22... Bxf5 23. Bxf8 Kxf8 24. Qxd5 $14) 20... Be6 {[%emt 0:01:42]} 21. Qe3 {[%emt 0:10:38] Inhibits Ne4.} Rfc8 {[%emt 0:06:04][%cal Oc5e4]} 22. Rhf1 {[%emt 0:02:30]} Ne4 {[%emt 0:00:55]} 23. Qh3 {[%emt 0:02:51]} g6 {[%emt 0:00:21]} 24. Qh6 {[%emt 0:08:02][%cal Of1f3]} Qc7 {[%emt 0:04:34]} (24... gxf5 $2 25. gxf5 $18) 25. Rc1 {[%emt 0:01:02][%cal Of1f3]} Qc4 {[%emt 0:02:41]} (25... gxf5 $2 26. gxf5 Kh8 27. fxe6 fxe6 28. Qxe6 $18) 26. Qe3 {[%emt 0:16:03][%cal Oh2h4]} Rab8 {[%emt 0:03:06]} 27. Bxe4 {[%emt 0:00:31]} (27. b3 $5 {[%cal Rb3c4]} Nc3+ 28. Bxc3 bxc3 29. Rf4 $11) 27... dxe4 {[%emt 0:00:05][%csl Ge6][%cal Rc4a2]} 28. b3 {[%emt 0:00:03]} Qc6 {[%emt 0:00:06]} 29. Qh6 {[%emt 0:05:25]} a5 {[%emt 0:01:51]} 30. Rxf7 {[%emt 0:06:02]} Kxf7 {[%emt 0:00:17]} (30... Bxf7 $2 31. e6) 31. Qxh7+ {[%emt 0:00:08]} Ke8 {[%emt 0:00:38]} 32. Qh8+ {[%emt 0:00:09]} Kd7 {[%emt 0:00:42]} (32... Ke7 $5 33. Qf6+ Ke8 34. Qh8+ Ke7 35. Qf6+ Ke8 36. Qh8+ $11) 33. Qg7+ {[%emt 0:00:04]} Kd8 {[%emt 0:00:38] ...Rb7 is the strong threat.} 34. Rf1 $1 {[%emt 0:00:24] Rf8+ would kill now.} Bd7 {[%emt 0:00:30]} (34... Qxc2+ $2 35. Ka1 Qc1+ 36. Rxc1 Rxc1+ 37. Kb2 $18) (34... Qd7 $1 $11 35. Qf8+ Kc7 36. Qc5+ Qc6 37. Qe7+ Qd7 38. Qc5+ Qc6 39. Qe7+ Qd7 40. Qc5+) 35. e6 $1 $16 {[%emt 0:01:20]} Qxe6 {[%emt 0:01:02] aiming for ...Rc6.} 36. Be5 {[%emt 0:02:11]} Rc6 {[%emt 0:02:26] Threatens to win with ...Rb5.} 37. Bxb8 {[%emt 0:02:29] Black must now prevent Bg3.} (37. Rf8+ $6 Be8 38. Bxb8 Qd5 $11) 37... e3 {[%emt 0:01:21]} 38. Qd4 {[%emt 0:00:21] Hoping for Rf8+.} Kc8 {[%emt 0:00:42]} 39. Bg3 {[%emt 0:00:51]} Kb7 {[%emt 0:01:05] Inhibits Qa7+.} 40. Rd1 {[%emt 0:03:00]} Bc8 {[%emt 0:00:15]} 41. Qf4 {[%emt 0:00:20] Strongly threatening Qb8+.} Ka6 {[%emt 0:01:21]} (41... Qxg4 $2 42. Qb8+ Ka6 43. Qa8+ Kb6 44. Rd5 $18) (41... g5 $16 {is a better defense.} 42. Qxg5 e2) 42. h3 {[%emt 0:00:29]} (42. Qf3 $18 {is more deadly.}) 42... g5 {[%emt 0:00:00]} (42... e2 $16 43. Rc1 Bd7) 43. Qd4 $36 {[%emt 0:01:16][%mdl 2048] Black is under strong pressure.} ({Don't do} 43. Qxg5 Qe4 44. Rc1 Qd4) 43... Bb7 {[%emt 0:00:23]} (43... e2 {was called for.} 44. Rc1 (44. Qd3+ Kb7 $16) 44... Bd7 45. Qd3+ (45. Bf2 Rc7 $16) 45... Ka7 46. Bf2+ Ka8) 44. Bb8 {[%emt 0:00:24] Threatening mate with Qa7+.} Bc8 $2 {[%emt 0:00:30]} (44... Rb6) 45. Qa7+ {[%emt 0:00:16]} Kb5 {[%emt 0:00:01]} 46. Bc7 {[%emt 0:00:21]} (46. c4+ $142 bxc3 47. Rd4) 46... Ba6 {[%emt 0:00:36]} 47. Qb8+ {[%emt 0:00:14]} Kc5 {[%emt 0:00:03]} 48. Be5 {[%emt 0:00:40]} (48. Bxa5 $142 Bb7 49. Qxb7 Qe4 50. Bb6+ $1 {[%mdl 512]} Rxb6 51. Qxe4 Rh6 52. Rd7 Rc6 53. Qxe3+ Kb5 54. Rb7+ Ka5 55. Qa7+ Ra6 56. Qc5#) 48... e2 {[%emt 0:00:20]} 49. Bd4+ $4 {[%emt 0:00:12][%mdl 8192]} (49. Qf8+ $18 {is the narrow road to win.} Kb5 50. c4+ Rxc4 51. Qb8+ (51. bxc4+ Ka4 $15) 51... Kc5 52. Bd6+ Kc6 53. Qc7+ Kb5 54. bxc4+ Qxc4 55. Qd7+ Kb6 56. Qd8+ Kc6 57. Qe8+ Kb7 58. Qe7+ Kb6 59. Qd8+ Kc6 60. Qe8+ Kb7 61. Qe7+ Kb6 62. Qd8+) 49... Kd5 $19 {[%emt 0:00:06][%cal Bc5d5,Bd5e4,Be4d4,Bd4e5,Be5d6,Bd6e7,Be7f6,Bf6g7,Bg7g6,Bg6h6][%mdl 32] Really sharp!} 50. Qd8+ {[%emt 0:00:05]} Ke4 {[%emt 0:00:34]} 51. Rc1 {[%emt 0:01:15] [#]} (51. Ba7 $142 exd1=N 52. Qxd1) 51... Rd6 {[%emt 0:00:15]} (51... Rxc2 $142 $3 {[%mdl 512]} 52. Kxc2 Qc6+ 53. Bc5 Qxc5+ 54. Kb1 Bd3+ 55. Qxd3+ Kxd3 56. Rxc5 e1=Q+ 57. Rc1 Qe3 58. Rd1+ Kc3 59. Rc1+ Kd2 60. Rc2+ Kd3) 52. Qa8+ {[%emt 0:00:11]} Kxd4 {[%emt 0:00:13]} 53. Qa7+ {[%emt 0:00:18]} Ke5 {[%emt 0:00:39] ( -> ...Rd1)} 54. h4 {[%emt 0:01:26]} Rd1 {[%emt 0:01:19] Black mates.} 55. Qe3+ {[%emt 0:00:07]} Kd6 {[%emt 0:00:14]} 56. Qb6+ {[%emt 0:00:06]} Ke7 {[%emt 0:00:21]} 57. Qa7+ {[%emt 0:00:17]} Kf6 {[%emt 0:00:33]} 58. Qf2+ {[%emt 0:00:25]} Kg7 {[%emt 0:00:37]} 59. Qa7+ {[%emt 0:00:11]} Kg6 {[%emt 0:00:34]} 60. h5+ {[%emt 0:00:15]} Kh6 {[%emt 0:00:07] Black used his chance.  Weighted Error Value: White=0.97/Black=0.39} 0-1

[Event "34th MPL National U14-ch 2022"]
[Site "Ahmedabad"]
[Date "2022.05.13"]
[Round "9.2"]
[White "Kadam Om Manish"]
[Black "Abhash Roimya Saikia"]
[Result "1/2-1/2"]
[ECO "B10"]
[WhiteElo "2144"]
[BlackElo "1794"]
[Annotator "TA"]
[PlyCount "126"]
[EventDate "2022.05.09"]
[EventType "swiss"]
[EventCountry "IND"]
[SourceTitle "playchess.com"]
[Source "ChessBase"]
[SourceQuality "1"]
[TimeControl "5400+30"]

{[%evp 11,126,2,11,0,22,-14,-11,-20,-7,-22,11,20,22,0,16,0,0,0,37,16,40,30,40,31,35,23,80,8,66,0,0,-89,-81,-97,-87,-165,-158,-173,-171,-222,-202,-256,-253,-228,-137,-131,-125,-129,-26,-26,-26,-26,-26,-26,0,0,0,0,0,0,0,0,0,0,8,8,18,18,89,0,0,0,0,0,0,0,0,0,14,14,14,0,14,0,0,0,0,0,0,0,0,0,0,0,0,0,0,0,0,0,0,0,0,0,0,0,0,0,0,0,0,0,0,0,0,0,0]} 1. e4 {[%emt 0:00:02]} c6 {[%emt 0:00:10]} 2. c4 {[%emt 0:00:16]} d5 {[%emt 0:00:06]} 3. exd5 {[%emt 0:00:03]} cxd5 {[%emt 0:00:06]} 4. cxd5 {[%emt 0:00:04]} Nf6 {[%emt 0:00:09]} 5. Nc3 {[%emt 0:00:05]} Nxd5 {[%emt 0:00:06]} 6. Nf3 Nc6 {[%emt 0:00:08]} 7. Bb5 {[%emt 0:00:06] B10: Caro-Kann: 2 d3 and 2 c4.} g6 {[%emt 0:00:13]} 8. d4 (8. Qa4 $5 {[%cal Rb5c6]} Nb6 9. Bxc6+ bxc6 10. Qxc6+ Bd7 11. Qe4 $11) 8... Bg7 {[%emt 0:06:20]} 9. O-O {[%emt 0:08:35]} O-O {[%emt 0:01:59]} 10. h3 {[%emt 0:00:44]} Nc7 {[%emt 0:18:33]} 11. Bxc6 {[%emt 0:02:33]} bxc6 {[#]} 12. Re1 $146 ({Predecessor:} 12. Qa4 Bd7 13. Qa3 Nb5 14. Qc5 Be6 15. Nxb5 cxb5 16. Qxb5 Rc8 17. Re1 Bd5 18. Ne5 {½-½ (24) Mladenov,S (2407)-Turov,M (2630) Basel 2013}) 12... Ne6 {[%emt 0:10:11]} 13. Be3 {[%emt 0:02:33]} Rb8 {[%emt 0:04:57]} 14. Qd2 {[%emt 0:15:50]} Ba6 {[%emt 0:09:15]} 15. Rab1 {[%emt 0:09:57]} Bc4 {[%emt 0:04:31]} 16. Bh6 {[%emt 0:03:12]} Bd5 {[%emt 0:08:59] Strongly threatening ...Bxh6.} 17. Bxg7 {[%emt 0:00:16]} Kxg7 {[%emt 0:00:41]} 18. Ne5 {[%emt 0:01:17]} h5 {[%emt 0:09:53]} (18... Qd6 $11) 19. b4 {[%emt 0:02:00]} ({But not} 19. Nxd5 Qxd5 20. Qc3 Rb7 $11) (19. b3 $16) 19... Qd6 {[%emt 0:03:57]} (19... a5 $11) 20. b5 {[%emt 0:02:44] White is more active.} ({Better is} 20. Nxd5 $14 cxd5 21. b5) 20... f6 {[%emt 0:03:21]} 21. Nd3 {[%emt 0:26:46]} (21. bxc6 $11 {keeps the balance.} Rxb1 22. Rxb1) 21... Nxd4 $17 {[%emt 0:03:35]} 22. Nb4 {[%emt 0:01:52]} e5 {[%emt 0:01:12]} 23. Ncxd5 {[%emt 0:00:20]} (23. f4 $17) 23... cxd5 $19 {[%emt 0:00:20]} 24. a4 {[%emt 0:00:02] [#]} Rbc8 $1 {[%emt 0:01:39]} 25. f4 {[%emt 0:01:44]} (25. Rb2 $142) 25... Rc4 {[%emt 0:01:48]} 26. Nc6 {[%emt 0:06:54]} Nxc6 {[%emt 0:03:25]} 27. bxc6 {[%emt 0:00:04]} Rxc6 {[%emt 0:01:13]} 28. fxe5 {[%emt 0:00:03]} fxe5 {[%emt 0:00:29] aiming for ...Rc7.} 29. Rb7+ {[%emt 0:00:03] [#]} Rc7 {[%emt 0:01:44]} (29... Rf7 $1 $17 {[%cal Rf7b7]} 30. Rxf7+ Kxf7 31. Qf2+ Kg7 32. Qxa7+ Rc7) 30. Rxc7+ $11 {[%emt 0:00:06]} Qxc7 {[%emt 0:00:03]} 31. Qxd5 {[%emt 0:00:03][%mdl 4096] Endgame KQR-KQR} Re8 {[%emt 0:01:30]} 32. Re4 {[%emt 0:00:17]} a5 {[%emt 0:00:27]} (32... Qb6+ {is more complex.} 33. Kh1 Re7 34. h4 Qf2) 33. Rc4 {[%emt 0:00:29]} Qa7+ {[%emt 0:00:38]} 34. Kh1 {[%emt 0:00:12]} Re7 {[%emt 0:02:07]} 35. Re4 {[%emt 0:00:50]} Qc7 {[%emt 0:00:27]} 36. Kh2 {[%emt 0:00:10]} Qa7 {[%emt 0:00:50]} 37. Qd6 {[%emt 0:00:09]} Qc7 {[%emt 0:01:58]} 38. Qxc7 {[%emt 0:01:09]} Rxc7 {[%emt 0:00:02]} 39. Rxe5 {[%emt 0:00:00] KR-KR} Ra7 {[%emt 0:00:54]} (39... Kf6 $11 {remains equal.} 40. Rxa5 g5) 40. h4 {[%emt 0:00:04]} (40. Kg3 $16) 40... Ra6 {[%emt 0:00:30] The position is equal.} 41. Kg3 {[%emt 0:00:03]} Kf6 {[%emt 0:01:25]} 42. Rb5 {[%emt 0:00:04]} Rc6 {[%emt 0:00:27]} 43. Rxa5 {[%emt 0:01:15]} Rc3+ {[%emt 0:00:02]} 44. Kh2 {[%emt 0:00:28]} Ra3 {[%emt 0:00:15]} 45. g3 {[%emt 0:00:18]} Ra2+ {[%emt 0:00:12]} 46. Kh3 {[%emt 0:00:02]} Ra3 {[%emt 0:00:05]} 47. Ra8 {[%emt 0:00:03]} Ra2 {[%emt 0:00:18]} 48. Ra7 {[%emt 0:00:49]} Ke6 {[%emt 0:00:17]} 49. a5 {[%emt 0:00:05]} Kf6 {[%emt 0:00:05]} 50. Ra8 {[%emt 0:01:15]} Kf7 {[%emt 0:00:17]} 51. Ra6 {[%emt 0:00:08]} Kg7 {[%emt 0:00:05]} 52. Ra8 {[%emt 0:00:29]} Kf7 {[%emt 0:00:07]} 53. Ra7+ {[%emt 0:00:18]} Kf6 {[%emt 0:00:04]} 54. a6 {[%emt 0:00:58]} Ke6 {[%emt 0:00:06]} 55. Rg7 {[%emt 0:00:44]} Kf6 {[%emt 0:00:05]} 56. Ra7 {[%emt 0:00:04]} Ke6 {[%emt 0:00:08]} 57. Ra8 {[%emt 0:02:56] White threatens a7 and mate.} Kf7 {[%emt 0:00:08]} 58. g4 {[%emt 0:01:51] Black must now prevent g5.} Ra3+ {[%emt 0:00:08]} 59. Kg2 {[%emt 0:00:04]} hxg4 {[%emt 0:00:05]} 60. Kf2 {[%emt 0:00:01]} Kg7 {[%emt 0:00:11]} 61. Ra7+ {[%emt 0:00:35]} Kf6 {[%emt 0:00:36]} 62. Kg2 {[%emt 0:00:13]} Ke6 {[%emt 0:00:28]} 63. Ra8 {[%emt 0:01:09] Threatens to win with a7.} Kf6 {[%emt 0:00:11] White happily takes the draw.  Weighted Error Value: White=0.15 (very precise) /Black=0.13 (very precise)} 1/2-1/2

[Event "34th MPL National U14-ch 2022"]
[Site "Ahmedabad"]
[Date "2022.05.13"]
[Round "9.3"]
[White "Koustuv Dash"]
[Black "Daakshin Arun"]
[Result "1-0"]
[ECO "A63"]
[WhiteElo "1910"]
[BlackElo "2016"]
[Annotator "TA"]
[PlyCount "77"]
[EventDate "2022.05.09"]
[EventType "swiss"]
[EventCountry "IND"]
[SourceTitle "playchess.com"]
[Source "ChessBase"]
[SourceQuality "1"]
[TimeControl "5400+30"]

{[%evp 25,77,15,0,-53,-42,-85,-94,-121,-116,-127,-69,-97,-47,-46,-81,-41,-73,-47,-40,-54,-27,-42,0,0,0,0,6,13,4,10,10,0,0,0,7,0,0,0,0,0,0,0,38,-90,0,0,583,599,569,483,5043,4714,29990,29991]} 1. d4 {[%emt 0:00:48]} Nf6 {[%emt 0:00:05]} 2. c4 {[%emt 0:00:05]} g6 {[%emt 0:00:03]} 3. Nf3 {[%emt 0:00:07]} Bg7 {[%emt 0:00:04]} 4. g3 {[%emt 0:00:06]} O-O {[%emt 0:00:05]} 5. Bg2 {[%emt 0:00:03]} d6 {[%emt 0:00:03]} 6. O-O {[%emt 0:00:09]} c5 {[%emt 0:00:08]} 7. d5 {[%emt 0:00:36]} e6 {[%emt 0:00:13]} 8. Nc3 {[%emt 0:00:18]} Re8 {[%emt 0:00:37]} 9. Re1 {[%emt 0:01:17]} exd5 {[%emt 0:01:09]} 10. cxd5 {[%emt 0:00:07]} Nbd7 {[%emt 0:01:08][%cal Bb8d7,Bd7b6,Bb6a4,Ba4b2,Bb2d3][%mdl 32]} 11. h3 {[%emt 0:00:24]} a6 {[%emt 0:02:48]} 12. a4 {[%emt 0:00:13]} Ne4 {[%emt 0:08:43]} 13. Nxe4 {[%emt 0:02:03]} Rxe4 {[%emt 0:00:05] [#]} 14. Rb1 $146 {[%emt 0:08:16] A63: Modern Benoni: Fianchetto Variation: 9...Nbd7.} ({Better is} 14. Nd2 $11 Re8 15. Ra2) ({Predecessor:} 14. Qc2 Re8 15. e4 Ne5 16. Nxe5 Bxe5 17. f4 Bg7 18. Bd2 f5 19. Kh2 fxe4 20. Bxe4 Re7 21. Bc3 Qf8 {½-½ (56) Ghazarian,K (2331)-Mikhalevski,V (2579) Sturbridge 2021}) 14... b5 $1 $15 {[%emt 0:07:53]} 15. Bf4 {[%emt 0:12:30]} Nb6 {[%emt 0:06:37]} 16. a5 {[%emt 0:06:39] Black is better.} Na4 {[%emt 0:01:34]} 17. Bd2 {[%emt 0:08:34]} c4 {[%emt 0:06:55]} ({Much less strong is} 17... Bxb2 18. Rxb2 $1 Nxb2 19. Qb1 $16) (17... Rc4 $17 {...Bf5 is the strong threat.} 18. e4 Nxb2) 18. Qc2 {[%emt 0:04:50]} Bf5 {[%emt 0:03:32]} (18... Re8 $17) 19. g4 $1 {[%emt 0:00:25] [#]} Rxg4 {[%emt 0:00:17]} 20. e4 {[%emt 0:00:12] [#]} Rxe4 {[%emt 0:05:17]} 21. Rxe4 {[%emt 0:00:14][%cal Of3h2]} Nxb2 {[%emt 0:02:59]} 22. Rbe1 $1 {[%emt 0:09:06]} Bxe4 {[%emt 0:01:36]} 23. Rxe4 {[%emt 0:01:10]} Nd3 {[%emt 0:03:03]} 24. Nd4 {[%emt 0:13:22]} Qf6 {[%emt 0:10:24]} 25. Bc3 {[%emt 0:06:27][%cal Od4b5]} b4 {[%emt 0:04:27] [#]} 26. Bxb4 {[%emt 0:00:48]} Nxb4 {[%emt 0:00:06]} 27. Qxc4 {[%emt 0:00:06]} Rb8 {[%emt 0:00:20]} 28. Qc7 {[%emt 0:02:31]} Rf8 {[%emt 0:02:20]} 29. Qc4 {[%emt 0:00:19]} Rb8 {[%emt 0:00:23]} 30. Qc7 {[%emt 0:00:03]} Rf8 {[%emt 0:01:01]} 31. Qc4 {[%emt 0:00:02]} Rb8 {[%emt 0:00:15]} 32. Nc6 $36 {[%emt 0:12:53][%mdl 2048] Against Qd8. White has good play.} Nxc6 {[%emt 0:00:20]} 33. dxc6 {[%emt 0:00:02] And now c7 would win.} Qa1+ {[%emt 0:05:58]} (33... Rb1+ $2 34. Bf1 Rb2 35. Re2 (35. Rf4 Qg5+ 36. Rg4 Qd2 $17) 35... Rxe2 36. Bxe2 $18) (33... d5 $5 34. Qxd5 Rd8 $16) 34. Kh2 {[%emt 0:02:36] [#]} (34. Bf1 $1 $14 {was the only good move.} Be5 35. c7) 34... Qxa5 {[%emt 0:01:32]} ({Black should try} 34... Be5+ $1 $17 35. f4 {[#]} d5 $1 36. Qxd5 Bc7) 35. Re7 $11 {[%emt 0:05:36]} Be5+ $2 {[%emt 0:02:44][%mdl 8192]} (35... Qf5 $11 36. c7 Rc8 37. Rxf7 Be5+ 38. Kg1 Qxf7) 36. f4 $18 {[%emt 0:01:59]} d5 {[%emt 0:00:25]} 37. Rxe5 {[%emt 0:00:14]} Qd2 {[%emt 0:02:35]} (37... dxc4 $142 38. Rxa5 Rc8 39. Rxa6 Kf8) 38. Rxd5 {[%emt 0:00:23]} Qf2 {[%emt 0:00:33]} 39. c7 {[%emt 0:00:20] Weighted Error Value: White=0.21 (precise) /Black=0.74} 1-0

[Event "34th MPL National U14-ch 2022"]
[Site "Ahmedabad"]
[Date "2022.05.13"]
[Round "9.4"]
[White "Mrithyunjay Mahadevan"]
[Black "Md Imran"]
[Result "1-0"]
[ECO "C00"]
[WhiteElo "1661"]
[BlackElo "2122"]
[Annotator "TA"]
[PlyCount "73"]
[EventDate "2022.05.09"]
[EventType "swiss"]
[EventCountry "IND"]
[SourceTitle "playchess.com"]
[Source "ChessBase"]
[SourceQuality "1"]
[TimeControl "5400+30"]

{[%evp 12,73,20,16,8,4,16,-2,62,47,46,47,33,-33,-19,-19,-20,-40,0,-20,7,16,19,22,28,44,50,52,40,41,42,32,85,82,366,356,356,356,356,342,413,347,516,382,479,380,602,363,403,314,489,481,638,612,29990,29991,29991,29992,29992,29990,29996,29997,29997,29998]} 1. e4 {[%emt 0:00:02]} c5 {[%emt 0:00:52]} 2. Nf3 {[%emt 0:00:07]} e6 {[%emt 0:00:09]} 3. g3 {[%emt 0:00:06]} Nc6 {[%emt 0:00:09]} 4. Bg2 {[%emt 0:00:07]} Nf6 {[%emt 0:00:18]} 5. Qe2 {[%emt 0:00:08]} d6 {[%emt 0:01:08]} 6. O-O {[%emt 0:00:44]} Be7 {[%emt 0:00:02]} 7. c3 {[%emt 0:01:13]} O-O {[%emt 0:00:19] C00: French: Unusual White 2nd moves.} 8. d4 {[%emt 0:03:59]} d5 {[%emt 0:00:16]} 9. exd5 {[%emt 0:01:35]} Nxd5 {[%emt 0:00:22]} (9... exd5 $11 10. dxc5 Bxc5) 10. Rd1 cxd4 {[%emt 0:00:52]} 11. Nxd4 {[%emt 0:01:01]} Nxd4 {[%emt 0:00:05] [#]} 12. cxd4 $146 {[%emt 0:00:20]} ({White should play} 12. Rxd4 $14 Qc7 13. c4 (13. Bxd5 exd5 14. Bf4 Qd7 $11)) ({Predecessor:} 12. Rxd4 Qc7 13. a4 Bf6 14. Rc4 Qe5 15. Re4 Qc7 16. Na3 Bd7 17. c4 Nb4 18. Nb5 {1-0 (57) Riff,J (2515)-Metz,H (2291) Germany 2010}) 12... Bd7 {[%emt 0:00:20]} 13. Nc3 {[%emt 0:15:45]} Bc6 {[%emt 0:00:04]} 14. Be3 {[%emt 0:01:19]} Qa5 {[%emt 0:04:56]} 15. Rac1 {[%emt 0:01:21]} (15. Bd2 $5 {[%cal Rc3d5]} Qd8 16. Rac1 $11) 15... Rac8 {[%emt 0:00:18]} 16. Bd2 {[%emt 0:03:40] [#] And now Nxd5 would win.} Bb4 {[%emt 0:11:13]} 17. Nxd5 {[%emt 0:20:12]} Bxd5 {[%emt 0:00:06]} 18. Rxc8 {[%emt 0:00:06]} Rxc8 {[%emt 0:00:03]} 19. Bxd5 {[%emt 0:00:13]} exd5 {[%emt 0:00:07]} 20. Qg4 {[%emt 0:00:21]} Rd8 {[%emt 0:28:21]} 21. Bg5 {[%emt 0:02:02]} Re8 {[%emt 0:01:04]} (21... Rb8 $1 $14) 22. Qd7 $40 {[%emt 0:00:45][%csl LRb7,LRe8][%mdl 128] White has strong attack.} Re2 {[%emt 0:01:34][%mdl 8192] [#] This costs Black the game.} (22... Re6 $16) 23. Be7 $1 $18 {[%emt 0:02:23][%mdl 512]} Bxe7 {[%emt 0:01:28]} 24. Qe8+ {[%emt 0:00:09]} Bf8 {[%emt 0:00:01]} 25. Qxe2 {[%emt 0:00:13]} Qxa2 {[%emt 0:00:04][%mdl 4096] Endgame KQR-KQB} 26. Qb5 {[%emt 0:01:52] Inhibits Qa4.} b6 {[%emt 0:03:09]} (26... a6 {might work better.} 27. Qxb7 Qc4) 27. Re1 {[%emt 0:04:11]} g6 {[%emt 0:00:06]} 28. Kg2 {[%emt 0:02:19]} Kg7 {[%emt 0:00:15]} (28... Qc4 $142 29. Qxc4 dxc4) 29. Re2 {[%emt 0:00:35]} a6 {[%emt 0:02:33]} 30. b3 {[%emt 0:01:19]} Qb1 {[%emt 0:00:25]} (30... Be7 $142 31. Rxa2 axb5) 31. Qxd5 {[%emt 0:01:00]} b5 {[%emt 0:00:06]} 32. Re8 {[%emt 0:00:29] Hoping for Qe5+.} h5 {[%emt 0:01:23]} 33. Qe5+ {[%emt 0:00:07] White mates.} f6 {[%emt 0:00:18]} 34. Qc7+ {[%emt 0:00:14]} Kh6 {[%emt 0:00:03]} 35. h4 {[%emt 0:02:14]} Bg7 {[%emt 0:00:26]} 36. Rg8 {[%emt 0:00:14][%csl Gg8][%cal Rc7g7]} Qe4+ {[%emt 0:00:06]} 37. Kh2 {[%emt 0:00:05] Weighted Error Value: White=0.24 (precise) /Black=0.91} 1-0